fUSD/lending_fUSD_20260221
["ID","MTS","AMOUNT","RATE_DAILY","PERIOD"]
[406239039,1771653032727,-2833.23190387,0.00015598,2]
[406239041,1771653037891,-1086.4395005,0.00015598,2]
[406239043,1771653037903,-5529.41206755,0.00015598,2]
[406239044,1771653037912,-435.08,0.000156,2]
[406239045,1771653037921,-597.51516709,0.00015689,2]
[406239046,1771653037931,-200.0,0.00015689,2]
[406239047,1771653037939,-500.0,0.00015689,2]
[406239048,1771653037949,-151.0,0.00015689,2]
[406239049,1771653037958,-151.0,0.00015689,2]
[406239050,1771653037967,-151.0,0.00015689,2]
[406239051,1771653037977,-151.0,0.00015689,2]
[406239052,1771653037986,-500.0,0.00015689,2]
[406239053,1771653037995,-151.0,0.00015689,2]
[406239054,1771653038004,-513.17312972,0.00015689,2]
[406239055,1771653038014,-151.0,0.00015689,2]
[406239056,1771653038024,-151.0,0.00015689,2]
[406239057,1771653038033,-151.0,0.00015689,2]
[406239058,1771653038043,-151.0,0.00015689,2]
[406239059,1771653038059,-542.30573458,0.00015689,2]
[406239060,1771653038072,-151.0,0.00015689,2]
[406239061,1771653038081,-151.0,0.00015689,2]
[406239062,1771653038091,-151.0,0.00015689,2]
[406239063,1771653038101,-151.0,0.00015689,2]
[406239064,1771653038111,-151.0,0.00015689,2]
[406239065,1771653038120,-151.0,0.00015689,2]
[406239066,1771653038130,-151.0,0.00015689,2]
[406239067,1771653038139,-151.0,0.00015689,2]
[406239068,1771653038148,-151.0,0.00015689,2]
[406239071,1771653038424,-151.0,0.00015689,2]
[406239072,1771653038434,-151.0,0.00015689,2]
[406239073,1771653038443,-151.0,0.00015689,2]
[406239074,1771653038453,-158.28068058,0.00015689,2]
[406239075,1771653038462,-628.48505003,0.0001569,2]
[406239076,1771653038471,-870.3,0.0001569,2]
[406239077,1771653038480,-9999.99,0.0001569,2]
[406239078,1771653038490,-150.99,0.0001569,2]
[406239079,1771653038500,-9179.72,0.00015697,2]
[406239080,1771653038509,-192.37895213,0.00015698,2]
[406239081,1771653038518,-348.04746549,0.00015698,2]
[406239082,1771653038527,-500.0,0.00015698,2]
[406239083,1771653038537,-453.72236959,0.00015698,2]
[406239084,1771653038546,-500.0,0.00015698,2]
[406239085,1771653038555,-458.34759777,0.00015698,2]
[406239086,1771653038565,-500.0,0.00015698,2]
[406239087,1771653038575,-500.0,0.00015698,2]
[406239088,1771653038584,-500.0,0.00015698,2]
[406239089,1771653038594,-500.0,0.00015698,2]
[406239090,1771653038603,-500.0,0.00015698,2]
[406239091,1771653038613,-1000.0,0.00015699,2]
[406239092,1771653038623,-301742.3318,0.00015699,2]
[406239093,1771653038632,-32860.742,0.00015699,2]
[406239094,1771653038641,-32535.20549017,0.00015765,2]
[406239095,1771653038651,-500.0,0.00015798,2]
[406239096,1771653038660,-500.0,0.00015798,2]
[406239097,1771653038670,-500.0,0.00015798,2]
[406239098,1771653038678,-500.0,0.00015798,2]
[406239099,1771653038688,-505.36393545,0.00015798,2]
[406239100,1771653038697,-500.0,0.00015798,2]
[406239101,1771653038707,-500.0,0.00015798,2]
[406239102,1771653038717,-274.81553287,0.00015798,2]
[406239103,1771653038726,-500.0,0.00015798,2]
[406239104,1771653038736,-500.0,0.00015798,2]
[406239105,1771653038745,-500.0,0.00015798,2]
[406239106,1771653038754,-500.0,0.00015798,2]
[406239107,1771653038763,-500.0,0.00015798,2]
[406239108,1771653038773,-500.0,0.00015798,2]
[406239109,1771653038782,-500.0,0.00015798,2]
[406239110,1771653038792,-500.0,0.00015798,2]
[406239111,1771653038801,-500.0,0.00015798,2]
[406239112,1771653038810,-500.0,0.00015798,2]
[406239113,1771653038819,-500.0,0.00015798,2]
[406239114,1771653038828,-500.0,0.00015798,2]
[406239115,1771653038837,-500.0,0.00015798,2]
[406239116,1771653038847,-500.0,0.00015798,2]
[406239117,1771653038860,-223.02771451,0.00015798,2]
[406239118,1771653038869,-500.0,0.00015798,2]
[406239119,1771653038879,-500.0,0.00015798,2]
[406239120,1771653038889,-500.0,0.00015798,2]
[406239121,1771653038898,-500.0,0.00015798,2]
[406239122,1771653038907,-627.47385881,0.00015798,2]
[406239123,1771653038916,-226.2421007,0.00015798,2]
[406239124,1771653038928,-500.0,0.00015798,2]
[406239125,1771653038938,-500.0,0.00015798,2]
[406239126,1771653038947,-500.0,0.00015798,2]
[406239127,1771653038956,-386.77491301,0.00015798,2]
[406239128,1771653038965,-500.0,0.00015798,2]
[406239129,1771653038975,-500.0,0.00015798,2]
[406239130,1771653038984,-511.47956793,0.00015798,2]
[406239131,1771653038993,-324.13,0.00015798,2]
[406239132,1771653039002,-505.47338901,0.00015798,2]
[406239133,1771653039011,-500.0,0.00015798,2]
[406239134,1771653039021,-166.66,0.00015949,2]
[406239135,1771653039031,-520.0,0.00016,2]
[406239136,1771653039040,-32535.20549017,0.00016032,2]
[406239137,1771653039048,-324.13,0.00016072,2]
[406239138,1771653039058,-500.0,0.0001611,2]
[406239139,1771653039067,-616.19377918,0.0001611,2]
[406239140,1771653039076,-9999.99,0.00016116,2]
[406239141,1771653039084,-200.0,0.00016237,2]
[406239142,1771653039094,-166.66,0.00016264,2]
[406239143,1771653039103,-32535.20549017,0.00016299,2]
[406239144,1771653039112,-324.13,0.00016346,2]
[406239145,1771653039124,-32535.20549017,0.00016566,2]
[406239146,1771653039134,-166.66,0.0001658,2]
[406239147,1771653039143,-324.13,0.0001662,2]
[406239148,1771653039152,-204.1429279,0.00016699,2]
[406239149,1771653039161,-13553.34,0.00016709,2]
[406239150,1771653039171,-200.0,0.00016785,2]
[406239151,1771653039180,-32535.20549017,0.00016832,2]
[406239152,1771653039189,-324.17811006,0.00016894,2]
[406239153,1771653039199,-32535.20549017,0.00017099,2]
[406239154,1771653039208,-1680.0,0.00017106,2]
[406239155,1771653039217,-327.29450692,0.00017117,2]
[406239156,1771653039226,-5000.0,0.00017118,2]
[406239157,1771653039236,-184.06,0.00017118,2]
[406239158,1771653039245,-528.25925325,0.00017118,2]
[406239159,1771653039255,-1443.0,0.00017323,2]
[406239160,1771653039264,-1000.0,0.00017333,2]
[406239161,1771653039273,-1000.0,0.00017333,2]
[406239162,1771653039283,-1000.0,0.00017333,2]
[406239163,1771653039293,-1000.0,0.00017333,2]
[406239164,1771653039302,-27385.12774595,0.00017366,2]
[406239165,1771653039311,-32535.20549017,0.00017366,2]
[406239166,1771653039320,-1443.0,0.00017489,2]
[406239167,1771653039330,-387.0,0.00017529,2]
[406239168,1771653039339,-1443.0,0.00017531,2]
[406239169,1771653039348,-151.0,0.0001763,2]
[406239170,1771653039357,-27385.12774595,0.00017633,2]
[406239171,1771653039366,-32535.20549017,0.00017633,2]
[406239172,1771653039375,-500.0,0.00017644,2]
[406239173,1771653039384,-800.0,0.00017808,2]
[406239174,1771653039393,-162.93997784,0.00017873,2]
[406239175,1771653039404,-168.71198045,0.00017873,2]
[406239176,1771653039413,-503.18537404,0.00017873,2]
[406239177,1771653039422,-501.05660533,0.00017873,2]
[406239178,1771653039431,-503.5027165,0.00017873,2]
[406239179,1771653039440,-246.364609,0.00017873,2]
[406239180,1771653039449,-165.27434071,0.00017873,2]
[406239181,1771653039457,-500.95052506,0.00017873,2]
[406239182,1771653039466,-184.37223932,0.00017873,2]
[406239183,1771653039475,-501.37835228,0.00017873,2]
[406239184,1771653039484,-501.38512914,0.00017873,2]
[406239185,1771653039493,-500.41653761,0.00017873,2]
[406239186,1771653039505,-166.88843163,0.00017873,2]
[406239187,1771653039514,-503.58870457,0.00017873,2]
[406239188,1771653039524,-493.47361044,0.00017873,2]
[406239189,1771653039533,-500.0,0.00017873,2]
[406239190,1771653039541,-500.49256887,0.00017873,2]
[406239191,1771653039551,-230.31122448,0.00017873,2]
[406239192,1771653039560,-500.18211712,0.00017873,2]
[406239193,1771653039569,-500.38903412,0.00017873,2]
[406239194,1771653039578,-500.0,0.00017873,2]
[406239195,1771653039587,-501.02670572,0.00017873,2]
[406239196,1771653039597,-500.0,0.00017873,2]
[406239197,1771653039607,-500.0,0.00017873,2]
[406239198,1771653039617,-500.8784215,0.00017873,2]
[406239199,1771653039626,-500.0,0.00017873,2]
[406239200,1771653039635,-164.4744294,0.00017873,2]
[406239201,1771653039644,-502.63635996,0.00017873,2]
[406239202,1771653039653,-500.0,0.00017873,2]
[406239203,1771653039662,-501.82753949,0.00017873,2]
[406239204,1771653039672,-500.0,0.00017873,2]
[406239205,1771653039681,-1443.0,0.00017889,2]
[406239206,1771653039689,-500.0,0.00017899,2]
[406239207,1771653039699,-500.0,0.00017899,2]
[406239208,1771653039708,-500.0,0.00017899,2]
[406239209,1771653039716,-500.0,0.00017899,2]
[406239210,1771653039726,-500.0,0.00017899,2]
[406239211,1771653039735,-500.0,0.00017899,2]
[406239212,1771653039744,-500.0,0.00017899,2]
[406239213,1771653039753,-500.0,0.00017899,2]
[406239214,1771653039762,-500.0,0.00017899,2]
[406239215,1771653039771,-500.0,0.00017899,2]
[406239216,1771653039780,-500.0,0.00017899,2]
[406239217,1771653039788,-500.0,0.00017899,2]
[406239218,1771653039798,-500.0,0.00017899,2]
[406239219,1771653039806,-500.0,0.00017899,2]
[406239220,1771653039815,-151.46393058,0.00017899,2]
[406239221,1771653039824,-500.0,0.00017899,2]
[406239222,1771653039833,-268.03492411,0.00017899,2]
[406239223,1771653039842,-500.0,0.00017899,2]
[406239224,1771653039853,-500.0,0.00017899,2]
[406239225,1771653039862,-500.0,0.00017899,2]
[406239226,1771653039871,-500.0,0.00017899,2]
[406239227,1771653039883,-537.50884095,0.00017899,2]
[406239228,1771653039892,-500.0,0.00017899,2]
[406239229,1771653039901,-500.0,0.00017899,2]
[406239230,1771653039910,-500.0,0.00017899,2]
[406239231,1771653039919,-500.0,0.00017899,2]
[406239232,1771653039928,-500.0,0.00017899,2]
[406239233,1771653039937,-500.0,0.00017899,2]
[406239234,1771653039946,-500.0,0.00017899,2]
[406239235,1771653039955,-500.0,0.00017899,2]
[406239236,1771653039964,-500.0,0.00017899,2]
[406239237,1771653039973,-500.0,0.00017899,2]
[406239238,1771653039982,-500.0,0.00017899,2]
[406239239,1771653039991,-500.0,0.00017899,2]
[406239240,1771653040001,-500.0,0.00017899,2]
[406239241,1771653040010,-500.0,0.00017899,2]
[406239242,1771653040019,-500.0,0.00017899,2]
[406239244,1771653040029,-500.0,0.00017899,2]
[406239246,1771653040038,-1494.36265214,0.00017899,2]
[406239248,1771653040047,-1494.36265214,0.00017899,2]
[406239250,1771653040056,-1494.36265214,0.00017899,2]
[406239251,1771653040065,-1494.36265214,0.00017899,2]
[406239252,1771653040074,-1494.36265214,0.00017899,2]
[406239253,1771653040083,-1494.36265214,0.00017899,2]
[406239254,1771653040092,-1494.36265214,0.00017899,2]
[406239255,1771653040101,-1494.36265214,0.00017899,2]
[406239256,1771653040111,-1494.36265214,0.00017899,2]
[406239257,1771653040120,-1494.36265214,0.00017899,2]
[406239258,1771653040129,-27385.12774595,0.000179,2]
[406239259,1771653040138,-32535.20549017,0.000179,2]
[406239260,1771653040147,-204.1429279,0.000179,2]
[406239261,1771653040157,-342.76331381,0.00017973,2]
[406239262,1771653040166,-500.0,0.00017973,2]
[406239263,1771653040175,-619.14973919,0.00017973,2]
[406239264,1771653040184,-500.0,0.00017973,2]
[406239265,1771653040193,-500.0,0.00017973,2]
[406239266,1771653040202,-500.0,0.00017973,2]
[406239267,1771653040212,-500.0,0.00017973,2]
[406239268,1771653040220,-500.0,0.00017973,2]
[406239269,1771653040229,-500.0,0.00017973,2]
[406239270,1771653040238,-500.0,0.00017973,2]
[406239271,1771653040247,-500.0,0.00017973,2]
[406239272,1771653040256,-500.0,0.00017973,2]
[406239273,1771653040265,-500.0,0.00017973,2]
[406239274,1771653040274,-500.0,0.00017973,2]
[406239275,1771653040283,-500.0,0.00017973,2]
[406239276,1771653040292,-500.0,0.00017973,2]
[406239277,1771653040301,-500.0,0.00017973,2]
[406239278,1771653040310,-500.0,0.00017973,2]
[406239279,1771653040318,-568.38984139,0.00017973,2]
[406239280,1771653040327,-500.0,0.00017973,2]
[406239281,1771653040337,-500.0,0.00017973,2]
[406239282,1771653040346,-500.0,0.00017973,2]
[406239283,1771653040354,-500.0,0.00017973,2]
[406239284,1771653040363,-500.0,0.00017973,2]
[406239285,1771653040372,-500.0,0.00017973,2]
[406239286,1771653040382,-500.0,0.00017973,2]
[406239287,1771653040393,-500.0,0.00017973,2]
[406239288,1771653040403,-500.0,0.00017973,2]
[406239289,1771653040413,-500.0,0.00017973,2]
[406239290,1771653040424,-500.0,0.00017973,2]
[406239291,1771653040438,-500.0,0.00017973,2]
[406239292,1771653040447,-500.39813374,0.00017973,2]
[406239293,1771653040455,-500.0,0.00017973,2]
[406239294,1771653040464,-533.24438323,0.00017973,2]
[406239295,1771653040473,-500.62983422,0.00017973,2]
[406239296,1771653040482,-500.0,0.00017973,2]
[406239297,1771653040490,-500.0,0.00017973,2]
[406239298,1771653040499,-500.0,0.00017973,2]
[406239299,1771653040508,-500.0,0.00017973,2]
[406239300,1771653040521,-502.50033053,0.00017973,2]
[406239301,1771653040530,-194.01074462,0.0001799,2]
[406239302,1771653040539,-220.0,0.00017995,2]
[406239303,1771653040548,-151.0,0.00017997,2]
[406239304,1771653040557,-151.0,0.00017997,2]
[406239305,1771653040566,-151.0,0.00017997,2]
[406239306,1771653040575,-500.0,0.00017999,2]
[406239307,1771653040584,-500.0,0.00017999,2]
[406239308,1771653040593,-640.01841681,0.00017999,2]
[406239309,1771653040602,-300.0,0.00017999,2]
[406239310,1771653040611,-666.0,0.00017999,2]
[406239311,1771653040621,-300.0,0.00017999,2]
[406239312,1771653040630,-666.0,0.00017999,2]
[406239313,1771653040639,-296.5196054,0.00017999,2]
[406239314,1771653040649,-2620808.84191648,0.00018,2]
[406239316,1771653040658,-522497.71438049,0.00018,2]
[406239318,1771653040667,-14137.4165672,0.00018,2]
[406239320,1771653040676,-384.27617011,0.00018,2]
[406239322,1771653040685,-205.0,0.00018,2]
[406239324,1771653040694,-151.0,0.00018,2]
[406239326,1771653040703,-151.0,0.00018,2]
[406239328,1771653040712,-153.464312,0.00018,2]
[406239330,1771653040721,-164.17122,0.00018,2]
[406239332,1771653040730,-164.17122,0.00018,2]
[406239334,1771653040738,-168.0,0.00018025,2]
[406239336,1771653040747,-168.0,0.00018121,2]
[406239338,1771653040756,-276.0,0.00018155,2]
[406239339,1771653040767,-1443.0,0.00018164,2]
[406239340,1771653040777,-168.0,0.00018189,2]
[406239341,1771653040785,-3037.0,0.0001828,2]
[406239342,1771653040794,-341.0,0.0001832,2]
[406239343,1771653040803,-168.0,0.00018386,2]
[406239344,1771653040812,-1001.90174129,0.00018421,2]
[406239345,1771653040821,-1004.36409669,0.00018421,2]
[406239346,1771653040830,-501.32982636,0.00018421,2]
[406239347,1771653040838,-501.3064784,0.00018421,2]
[406239348,1771653040848,-502.9045905,0.00018421,2]
[406239349,1771653040860,-500.5604227,0.00018421,2]
[406239350,1771653040869,-1001.34299668,0.00018421,2]
[406239351,1771653040878,-3037.0,0.00018421,2]
[406239352,1771653040886,-168.0,0.00018448,2]
[406239353,1771653040895,-1443.0,0.00018513,2]
[406239354,1771653040904,-1000.0,0.00018521,2]
[406239355,1771653040913,-168.0,0.0001855,2]
[406239356,1771653040922,-1443.0,0.00018585,2]
[406239357,1771653040932,-168.0,0.00018605,2]
[406239358,1771653040940,-2193.67,0.00018648,2]
[406239359,1771653040949,-168.0,0.00018662,2]
[406239360,1771653040959,-168.0,0.00018681,2]
[406239361,1771653040968,-168.0,0.00018705,2]
[406239362,1771653040976,-1000.0,0.00018719,2]
[406239363,1771653040985,-1443.0,0.00018728,2]
[406239364,1771653040994,-1443.0,0.00018787,2]
[406239365,1771653041003,-2351.0,0.00018806,2]
[406239366,1771653041015,-3037.0,0.00018865,2]
[406239367,1771653041026,-800.0,0.00018904,2]
[406239368,1771653041037,-3037.0,0.00018979,2]
[406239369,1771653041049,-3037.0,0.00018995,2]
[406239370,1771653041060,-352.10495522,0.00018999,2]
[406239371,1771653041070,-9686.293,0.00019,2]
[406239372,1771653041080,-93808.33794273,0.00019,2]
[406239373,1771653041090,-897.0,0.00019039,2]
[406239374,1771653041100,-1190.25332919,0.00019068,2]
[406239375,1771653041109,-3037.0,0.00019134,2]
[406239376,1771653041118,-518.56,0.00019393,2]
[406239377,1771653041128,-2193.67,0.00019495,2]
[406239378,1771653041138,-1011.86103829,0.00019683,2]
[406239379,1771653041148,-222.20283765,0.00019877,2]
[406239380,1771653041158,-174.61919141,0.00019877,2]
[406239381,1771653041169,-500.0,0.00019877,2]
[406239382,1771653041179,-250.0,0.00019877,2]
[406239383,1771653041189,-254.8861323,0.00019877,2]
[406239384,1771653041199,-500.0,0.00019877,2]
[406239385,1771653041209,-500.0,0.00019877,2]
[406239386,1771653041219,-500.0,0.00019877,2]
[406239387,1771653041230,-500.0,0.00019877,2]
[406239388,1771653041240,-500.0,0.00019877,2]
[406239389,1771653041251,-500.0,0.00019877,2]
[406239390,1771653041261,-500.0,0.00019877,2]
[406239391,1771653041272,-500.0,0.00019877,2]
[406239392,1771653041281,-500.0,0.00019877,2]
[406239393,1771653041291,-500.0,0.00019877,2]
[406239394,1771653041301,-693.3919763,0.00019877,2]
[406239395,1771653041311,-366.28348294,0.00019877,2]
[406239396,1771653041321,-719.04747942,0.00019932,2]
[406239397,1771653041330,-745.65223616,0.00019987,2]
[406239398,1771653041339,-773.2413689,0.00020042,2]
[406239399,1771653041348,-801.85129955,0.00020097,2]
[406239400,1771653041358,-831.51979763,0.00020152,2]
[406239401,1771653041369,-862.28603014,0.00020207,2]
[406239402,1771653041379,-160.0,0.00020222,2]
[406239403,1771653041389,-173.74378417,0.00020222,2]
[406239404,1771653041399,-894.19061326,0.00020262,2]
[406239405,1771653041410,-927.27566595,0.00020317,2]
[406239406,1771653041420,-2193.67,0.00020343,2]
[406239407,1771653041431,-961.58486559,0.00020372,2]
[406239408,1771653041440,-181.08010149,0.00020425,2]
[406239409,1771653041451,-997.16350561,0.00020427,2]
[406239410,1771653041460,-191.14813529,0.0002047,2]
[406239411,1771653041471,-235.02,0.00020604,30]
[406239412,1771653041482,-3292.0,0.00020674,2]
[406239413,1771653041492,-3154.4840227,0.00020798,2]
[406239414,1771653041502,-1000.0,0.00020799,2]
[406239415,1771653041513,-151.0,0.0002109,2]
[406239416,1771653041524,-1000.0,0.00021209,2]
[406239417,1771653041534,-1014.91673742,0.00021254,2]
[406239418,1771653041545,-518.56,0.00021332,2]
[406239419,1771653041555,-164.46005654,0.00021418,2]
[406239420,1771653041566,-381.16873354,0.00021418,2]
[406239421,1771653041576,-703.8605251,0.00021422,2]
[406239422,1771653041586,-700.0,0.00021439,2]
[406239423,1771653041596,-3965.6,0.00021476,2]
[406239424,1771653041606,-618.0,0.00021683,2]
[406239425,1771653041617,-1039.0,0.00021683,2]
[406239426,1771653041629,-3493.0,0.00021683,2]
[406239427,1771653041639,-1276.0,0.00021683,2]
[406239428,1771653041651,-5976.0,0.00021683,2]
[406239429,1771653041661,-1212.675,0.00021683,2]
[406239430,1771653041673,-5000.0,0.00021918,2]
[406239431,1771653041684,-200.0,0.00022,2]
[406239432,1771653041695,-523.84,0.00022,7]
[406239433,1771653041705,-10043.4,0.00022,2]
[406239434,1771653041716,-2765.05840641,0.00022514,2]
[406239435,1771653041727,-4609.0,0.00022728,2]
[406239436,1771653041738,-1000.0,0.00022879,2]
[406239437,1771653041748,-518.56,0.00023271,2]
[406239438,1771653041759,-150.0,0.00023672,12]
[406239439,1771653041770,-208.0,0.00023672,12]
[406239440,1771653041781,-178.0,0.00023672,12]
[406239441,1771653041791,-1011.86103829,0.00023869,2]
[406239442,1771653041802,-150.0,0.00024241,2]
[406239443,1771653041818,-150.0,0.00024241,2]
[406239444,1771653041828,-150.0,0.00024241,2]
[406239445,1771653041839,-150.0,0.00024241,2]
[406239446,1771653041851,-150.0,0.00024328,2]
[406239447,1771653041867,-150.0,0.00024328,2]
[406239448,1771653041878,-150.0,0.00024328,2]
[406239449,1771653041889,-318.044734,0.00024607,30]
[406239450,1771653041902,-235.02,0.00024633,30]
[406239451,1771653041914,-1000.0,0.00024658,2]
[406239452,1771653041924,-150.0,0.00024658,2]
[406239453,1771653041935,-500.0,0.0002467,2]
[406239454,1771653041944,-1000.0,0.0002467,2]
[406239455,1771653041955,-618.0,0.00024683,2]
[406239456,1771653041965,-503.266,0.00024683,2]
[406239457,1771653041975,-3493.0,0.00024683,2]
[406239458,1771653041985,-5976.0,0.00024683,2]
[406239459,1771653041996,-1209.0,0.00024683,2]
[406239460,1771653042008,-200.349807,0.000247,2]
[406239461,1771653042020,-155.4,0.00024736,2]
[406239462,1771653042033,-1000.0,0.00024958,2]
[406239463,1771653042045,-1710.0,0.00024986,2]
[406239464,1771653042055,-2798.69,0.00025175,2]
[406239465,1771653042066,-387.0,0.00025204,2]
[406239466,1771653042079,-191.14813529,0.00025341,2]
[406239467,1771653042089,-151.00118991,0.00025365,2]
[406239468,1771653042099,-500.0,0.00025376,120]
[406239469,1771653042108,-150.0,0.0002589,2]
[406239470,1771653042118,-10043.4,0.000259,2]
[406239471,1771653042128,-151.00118991,0.00026422,2]
[406239472,1771653042140,-155.4,0.00026797,2]
[406239473,1771653042152,-150.0,0.00027185,2]
[406239474,1771653042162,-150.0,0.00027241,2]
[406239475,1771653042172,-221.18984911,0.00027369,2]
[406239476,1771653042183,-170.19417175,0.0002737,2]
[406239477,1771653042194,-1000.0,0.00027397,20]
[406239478,1771653042205,-150.0,0.00027397,5]
[406239479,1771653042215,-523.84,0.000274,7]
[406239480,1771653042224,-151.00118991,0.00027479,2]
[406239481,1771653042234,-618.0,0.00027683,2]
[406239482,1771653042244,-3493.0,0.00027683,2]
[406239483,1771653042254,-5976.0,0.00027683,2]
[406239484,1771653042265,-247.68,0.0002776,2]
[406239485,1771653042274,-2000.0,0.000279,2]
[406239486,1771653042284,-150.96509003,0.00027945,5]
[406239487,1771653042295,-1011.86103829,0.00028054,2]
[406239488,1771653042307,-151.00118991,0.00028535,2]
[406239489,1771653042319,-150.0,0.00028544,2]
[406239490,1771653042330,-235.02,0.00028662,30]
[406239491,1771653042342,-155.4,0.00028859,2]
[406239492,1771653042353,-313.09003359,0.00029,120]
[406239493,1771653042365,-2000.0,0.000293,2]
[406239494,1771653042376,-10043.4,0.000293,2]
[406239495,1771653042386,-5588.62574747,0.000295,120]
[406239496,1771653042396,-151.00118991,0.00029592,2]
[406239497,1771653042406,-150.0,0.00029971,2]
[406239498,1771653042416,-177.84768566,0.0003,120]
[406239499,1771653042426,-189.08,0.000302,30]
[406239500,1771653042436,-191.14813529,0.00030213,2]
[406239501,1771653042446,-166.66,0.00030218,2]
[406239502,1771653042456,-500.0,0.00030338,120]
[406239503,1771653042467,-243.02,0.00030411,120]
[406239504,1771653042478,-151.00118991,0.00030649,2]
[406239505,1771653042488,-614.213,0.00030683,2]
[406239506,1771653042498,-234.867,0.00030683,2]
[406239507,1771653042508,-2000.0,0.000307,2]
[406239508,1771653042519,-387.0,0.00030912,2]
[406239509,1771653042529,-155.4,0.0003092,2]
[406239510,1771653042540,-166.66,0.00031215,2]
[406239511,1771653042550,-493.40986002,0.00031371,2]
[406239512,1771653042560,-150.0,0.0003147,2]
[406239513,1771653042571,-151.00118991,0.00031706,2]
[406239514,1771653042581,-179.184952,0.00031748,30]
[406239515,1771653042591,-1220.0,0.00032,120]
[406239516,1771653042602,-523.84,0.00032,7]
[406239517,1771653042612,-10043.4,0.00032,2]
[406239518,1771653042623,-520.0,0.00032,16]
[406239519,1771653042634,-2587.0,0.000321,2]
[406239520,1771653042644,-166.66,0.00032213,2]
[406239521,1771653042655,-1011.86103829,0.00032239,2]
[406239522,1771653042665,-189.08,0.000326,30]
[406239523,1771653042676,-235.02,0.00032691,30]
[406239524,1771653042686,-2000.0,0.000327,2]
[406239525,1771653042699,-151.00118991,0.00032763,2]
[406239526,1771653042710,-742.104381,0.00032809,30]
[406239527,1771653042720,-250.0,0.00032876,120]
[406239528,1771653042731,-250.0,0.00032876,120]
[406239529,1771653042742,-250.0,0.00032876,120]
[406239530,1771653042753,-250.0,0.00032876,120]
[406239531,1771653042763,-250.0,0.00032876,120]
[406239532,1771653042774,-250.0,0.00032876,120]
[406239533,1771653042784,-250.0,0.00032876,120]
[406239534,1771653042794,-250.73232894,0.00032876,120]
[406239535,1771653042804,-155.4,0.00032981,2]
[406239536,1771653042815,-358.3,0.00033,14]
[406239537,1771653042824,-160.0,0.00033,120]
[406239538,1771653042834,-170.0,0.00033,14]
[406239539,1771653042844,-150.0,0.00033,14]
[406239540,1771653042857,-150.0,0.00033043,2]
[406239541,1771653042867,-150.0,0.00033151,30]
[406239542,1771653042877,-166.66,0.0003321,2]
[406239543,1771653042887,-159.18,0.000333,14]
[406239544,1771653042897,-601.05,0.000333,2]
[406239545,1771653042907,-151.00118991,0.0003382,2]
[406239547,1771653042917,-166.66,0.00034208,2]
[406239548,1771653042928,-1000.0,0.00034237,7]
[406239549,1771653042938,-189.08,0.000343,30]
[406239550,1771653042949,-1000.0,0.00034511,7]
[406239551,1771653042960,-150.0,0.00034521,30]
[406239552,1771653042971,-150.0,0.00034696,2]
[406239553,1771653042982,-1000.0,0.00034785,7]
[406239554,1771653042993,-151.00118991,0.00034877,2]
[406239555,1771653043003,-155.4,0.00035043,2]
[406239556,1771653043014,-1000.0,0.00035059,7]
[406239557,1771653043025,-191.14813529,0.00035084,2]
[406239558,1771653043035,-166.66,0.00035205,2]
[406239559,1771653043046,-500.0,0.00035299,120]